Cogmind - Beta 15 @@@ ROGUE MODE // 2025.08.16 @ 12:56:34 Player: StaticNoob Result: Destroyed by as-03221 with Assembled Heavy Rifle Performance ------------- Evolutions (0) 0 Regions Visited (4) 800 Robots Destroyed (32) 160 Value Destroyed (759) 759 Prototype IDs (0) 0 Alien Tech Used (0) 0 Bonus (0) 0 TOTAL SCORE: 1719 Bonus ------- None Cogmind --------- Core Integrity 0/250 Matter 235/300 Energy 160/160 System Corruption 2% Temperature Cool (0) Movement Rolling (145) Ox3 Location -9/Mines Parts ------- > --- POWER (1) -------- Light Nuclear Core > --- PROPULSION (2) --- Armored Treads Compact Wheel > --- UTILITY (2) ------ High-capacity Storage Unit Seismic Detector > --- WEAPON (2) ------- Shotgun Light Cannon > --- INVENTORY (20) --- Nuclear Core Fission Core Fission Core Light Treads Light Treads Light Treads Light Treads Compact Wheel Compact Wheel Small Storage Unit Medium Storage Unit Large Storage Unit Trap Scanner Tractor Beam Improved Trap Extractor (0/6) Assault Rifle Assault Rifle Assault Rifle Grenade Launcher Datajack Peak State ------------ > --- POWER ------------ Nuclear Core > --- PROPULSION ------- Armored Treads Compact Wheel > --- UTILITY ---------- High-capacity Storage Unit Compact Matter Pod > --- WEAPON ----------- Assault Rifle Datajack > --- INVENTORY -------- Ion Engine Light Ion Engine Light Treads Light Treads Light Treads Light Treads Compact Wheel Compact Wheel Small Storage Unit Medium Storage Unit Large Storage Unit Trap Scanner Signal Interpreter Tractor Beam Improved Trap Extractor Assault Rifle Assault Rifle Assault Rifle Light Cannon Grenade Launcher [Rating: 15] Favorites ----------- Power Light Ion Engine Engine Light Ion Engine Power Core Nuclear Core Propulsion Light Treads Treads Light Treads Wheel Compact Wheel Utility Seismic Detector Device Seismic Detector Storage High-capacity Storage Unit Weapon Assault Rifle Ballistic Gun Assault Rifle Ballistic Cannon Light Cannon Special Melee Weapon Datajack Build | -11 -10 -10 -10 -9 ------- Run | Yrd Mat Min Exi Min Slots Evolved . | . . . . . Power . | . . . . . Propulsion . | . . . . . Utility . | . . . . . Weapon . | . . . . . Parts Attached 21 | 7 7 4 1 2 Power 4 | 1 1 1 . 1 Engine 2 | 1 1 . . . Core 2 | . . 1 . 1 Reactor . | . . . . . Propulsion 6 | 2 3 1 . . Treads 4 | 2 1 1 . . Leg . | . . . . . Wheel 2 | . 2 . . . Hover . | . . . . . Flight . | . . . . . Utility 6 | 2 3 1 . . Device 1 | 1 . . . . Storage 5 | 1 3 1 . . Processor . | . . . . . Hackware . | . . . . . Protection . | . . . . . Artifact . | . . . . . Weapon 5 | 2 . 1 1 1 Energy Gun . | . . . . . Energy Cannon . | . . . . . Ballistic Gun 3 | 2 . . . 1 Ballistic Cannon 1 | . . . 1 . Launcher . | . . . . . Special Weapon . | . . . . . Impact Weapon . | . . . . . Slashing Weapon . | . . . . . Piercing Weapon . | . . . . . Special Melee Weapon 1 | . . 1 . . Unidentified Prototypes . | . . . . . Parts Lost 1 | . 1 . . . Power 1 | . 1 . . . Propulsion . | . . . . . Utility . | . . . . . Weapon . | . . . . . Highest Loss Streak 1 | . 1 . . . To Critical Strikes . | . . . . . Average Backups 13 | 1 8 20 19 19 Power 1 | . 1 2 2 2 Propulsion 3 | . . 6 6 6 Utility 4 | . 2 5 6 6 Weapon 3 | . 3 5 4 3 Tool/Special . | . . . . . Unused Backups 16 | . 1 1 3 11 Power 4 | . . . 2 2 Propulsion 3 | . . . . 3 Utility 4 | . . . 1 3 Weapon 5 | . 1 1 . 3 Tool/Special . | . . . . . Average Slot Usage (%) 96 | . 99 100 85 100 Engine 8 | . 14 9 . . Core 5 | . . 4 14 14 Treads 20 | . 26 14 14 14 Wheel 7 | . 1 14 14 14 Device 13 | . 14 13 14 14 Storage 14 | . 14 14 14 14 Ballistic Gun 18 | . 27 22 . 14 Ballistic Cannon 2 | . . . . 14 Special Melee Weapon 3 | . . 5 13 . Peak Build Rating 15 | 7 9 15 14 15 Average Rating 9 | 4 7 10 12 14 On Entrance 8 | . 7 9 13 14 Naked Turns . | . . . . . Heaviest Build 54 | 13 48 51 53 54 Greatest Support 40 | 40 40 16 16 16 Greatest Overweight (x) 3 | . 2 3 3 3 Average Overweight (x) 1 | . . 2 3 3 Largest Inventory Capacity 20 | 8 20 20 20 20 Average Capacity 16 | 7 14 20 20 20 Most Carried 20 | 2 20 20 20 20 Average Carried 13 | 1 8 20 19 19 Final Capacity 20 | 8 20 20 20 20 Final Carried 20 | 2 20 20 18 20 Class Distribution -------------------- 100% | Mutant Dominant Class ---------------- Mutant | -10/Materials Mutant | -10/Mines Mutant | -10/Exiles Mutant | -9/Mines Resources | -11 -10 -10 -10 -9 ----------- Run | Yrd Mat Min Exi Min Matter Collected 1104 | 249 589 76 . 190 Remotely . | . . . . . Salvage Created 1162 | 28 1033 . . 101 Parts 71 | 4 59 . . 8 Haulers Intercepted 2 | . 2 . . . Recyclers Shooed 1 | . 1 . . . Parts Field Recycled . | . . . . . Retrieved Matter . | . . . . . Parts Self-Destructed . | . . . . . Prevented . | . . . . . Kills | -11 -10 -10 -10 -9 ------- Run | Yrd Mat Min Exi Min Combat Hostiles Destroyed 21 | . 16 . . 5 Guns 19 | . 16 . . 3 Cannons 2 | . . . . 2 Classes Destroyed 9 | 1 6 . . 2 Worker 2 | . 1 . . 1 Tunneler 2 | 1 1 . . . Hauler 2 | . 2 . . . Recycler 3 | . 3 . . . Watcher 3 | . 3 . . . Swarmer 3 | . 3 . . . Grunt 16 | . 13 . . 3 Duelist 1 | . . . . 1 Assembled 1 | . . . . 1 Best Kill Streak 3 | 1 3 . . 3 Combat Bots Only 2 | . 2 . . 2 Max Kills in Single Turn 1 | 1 1 . . 1 Gunslinging . | . . . . . Exploded . | . . . . . Melee . | . . . . . Uniques/NPCs Destroyed . | . . . . . Combat | -11 -10 -10 -10 -9 -------- Run | Yrd Mat Min Exi Min Hostile Shots Fired 96 | . 58 . . 38 Missed 21 | . 13 . . 8 Hits 75 | . 45 . . 30 Melee 4 | . . . . 4 Projectile 71 | . 45 . . 26 Critical Strikes 1 | . . . . 1 Damage Taken 986 | . 509 33 . 444 Core 256 | . 143 . . 113 Absorbed by Shields . | . . . . . Core Remaining (%) 100 | 100 . . . . Volleys Fired 98 | 1 75 . . 22 Largest 2 | 2 2 . . 2 Hottest 53 | 40 40 . . 53 Shots Fired 196 | 2 151 . . 43 Gun 174 | 2 151 . . 21 Cannon 22 | . . . . 22 Launcher . | . . . . . Special . | . . . . . Kinetic 196 | 2 151 . . 43 Thermal . | . . . . . Explosive . | . . . . . Electromagnetic . | . . . . . Robot Hit Streak 16 | 1 16 . . 6 Robot Miss Streak 5 | . 4 . . 5 Penetration Max . | . . . . . Secondary Targets 1 | . 1 . . . Max Gunslinging Chain 1 | . 1 . . . Shots Hit Robots 128 | 1 97 . . 30 Core Hits 61 | 1 49 . . 11 Critical Kills . | . . . . . Critical Parts Destroyed . | . . . . . Critical Strikes 1 | . . . . 1 Blast 1 | . . . . 1 Melee Attacks . | . . . . . Impact . | . . . . . Slashing . | . . . . . Piercing . | . . . . . Sneak Attacks . | . . . . . Combat Hostiles . | . . . . . Follow-up Attacks . | . . . . . Damage Inflicted 1746 | 11 1237 . . 498 Guns 1499 | 11 1236 . . 252 Cannons 246 | . . . . 246 Explosions . | . . . . . Melee . | . . . . . Ramming 1 | . 1 . . . Kinetic 1745 | 11 1236 . . 498 Thermal . | . . . . . Explosive . | . . . . . Electromagnetic . | . . . . . Impact . | . . . . . Slashing . | . . . . . Piercing . | . . . . . Highest Corruption 2 | . 2 2 2 2 Average Corruption 1 | . 1 2 2 2 Corruption Purged . | . . . . . Corruption Blocked . | . . . . . Effects 30 | . 18 1 4 7 Message Errors 7 | . 5 . 2 . Matter Fused 12 | . 6 1 1 4 Heat Flow Errors 2 | . 1 . . 1 Energy Discharges 3 | . 1 . 1 1 Data Loss (minor) 2 | . 2 . . . Data Loss (major) 1 | . . . . 1 Misfires 2 | . 2 . . . Weapon Failures 1 | . 1 . . . Overload Shots . | . . . . . Overflow Damage . | . . . . . Projectiles . | . . . . . Explosions . | . . . . . Melee . | . . . . . Knockbacks 3 | . . . . 3 Impact . | . . . . . Kinetic 3 | . . . . 3 Secondary . | . . . . . Self-Inflicted Damage . | . . . . . Shots . | . . . . . Rammed 1 | . 1 . . . Targets Rammed 1 | . 1 . . . Kicked . | . . . . . Crushed . | . . . . . Highest Temperature 163 | . 132 . . 163 Average Temperature 56 | . 41 . . 59 Received Heat Transfer 432 | . 264 . . 168 Siege Activations . | . . . . . Martial Activations . | . . . . . Shielding Activations . | . . . . . Robots Disrupted . | . . . . . Combat Hostiles . | . . . . . Robots Corrupted . | . . . . . Combat Hostiles . | . . . . . Parts Fried . | . . . . . Impact Corruptions . | . . . . . Robots Melted . | . . . . . Combat Hostiles . | . . . . . Parts Melted . | . . . . . Heat Transferred . | . . . . . Parts Sabotaged . | . . . . . Parts Stolen . | . . . . . Parts Stripped . | . . . . . Power Chain Reactions . | . . . . . Alert | -11 -10 -10 -10 -9 ------- Run | Yrd Mat Min Exi Min Maximum Alert Level . | . . . . . Low Security (%) 100 | 100 100 100 . 100 Level 1 . | . . . . . Level 2 . | . . . . . Level 3 . | . . . . . Level 4 . | . . . . . Level 5 . | . . . . . High Security . | . . . . . Max Security . | . . . . . Peak Influence 124 | 5 124 19 . 45 Initial 19 | . . 19 . . Average 30 | . 42 2 . 11 Influence Increases 587 | 5 462 . . 120 Destroy 0b10 Robot/C 400 | . 320 . . 80 Destroy 0b10 Robot/NC 60 | 5 50 . . 5 Destroy Leader 110 | . 90 . . 20 Destroy Structure 2 | . 2 . . . Lose Combat Pursuer 15 | . . . . 15 Influence Decreases 587 | 5 411 51 . 120 Entered New Map 32 | . . 32 . . Time Decay 545 | 5 401 19 . 120 Lost Part 10 | . 10 . . . Squads Dispatched 4 | . 4 . . . Investigation 1 | . 1 . . . Extermination . | . . . . . Reinforcement 3 | . 3 . . . Assault . | . . . . . Garrison . | . . . . . Intercept . | . . . . . Searches Triggered . | . . . . . Construction Impeded . | . . . . . Haulers Reinforced . | . . . . . Active Scanning Responses . | . . . . . Cargo Convoy Interrupts . | . . . . . Stealth | -11 -10 -10 -10 -9 --------- Run | Yrd Mat Min Exi Min Distress Signals 2 | . 2 . . . Communications Jammed . | . . . . . Distress Signals . | . . . . . Times Spotted 43 | . 33 . . 10 Peak Tracking Total 4 | . 4 . . 3 Tactical Retreats 1 | . . . . 1 Traps | -11 -10 -10 -10 -9 ------- Run | Yrd Mat Min Exi Min Traps Triggered 2 | . 2 . . . Indirectly . | . . . . . Trap Hack Attempts 1 | . . 1 . . Triggered 1 | . . 1 . . Disarmed . | . . . . . Reprogrammed . | . . . . . Reused . | . . . . . Traps Extracted . | . . . . . Installed . | . . . . . Triggered . | . . . . . Machines | -11 -10 -10 -10 -9 ---------- Run | Yrd Mat Min Exi Min Machines Disabled . | . . . . . Max in Single Turn . | . . . . . Machines Repaired . | . . . . . Machines Dismantled . | . . . . . Machines Sabotaged . | . . . . . Overloaded Fab Kills . | . . . . . Hacking | -11 -10 -10 -10 -9 --------- Run | Yrd Mat Min Exi Min Machines Accessed 6 | . 3 1 2 . Terminals 3 | . 3 . . . Fabricators . | . . . . . Repair Stations . | . . . . . Recycling Units . | . . . . . Scanalyzers . | . . . . . Garrison Access . | . . . . . Total Hacks 12 | . 9 1 2 . Successful 6 | . 3 1 2 . Failed 6 | . 6 . . . Catastrophic 1 | . 1 . . . Database Lockouts . | . . . . . Manual 9 | . 9 . . . Terminals 9 | . 9 . . . Fabricators . | . . . . . Repair Stations . | . . . . . Recycling Units . | . . . . . Scanalyzers . | . . . . . Garrison Access . | . . . . . Terminal Hacks 3 | . . 1 2 . Record 2 | . . . 2 . Open Door 1 | . . 1 . . Fabricator Hacks . | . . . . . Repair Station Hacks . | . . . . . Recycling Unit Hacks . | . . . . . Scanalyzer . | . . . . . Garrison Access Hacks . | . . . . . Unauthorized Hacks 3 | . 3 . . . Terminals 3 | . 3 . . . Botnet 1 | . 1 . . . Skim 2 | . 2 . . . Fabricators . | . . . . . Repair Stations . | . . . . . Recycling Units . | . . . . . Scanalyzers . | . . . . . Garrison Access . | . . . . . Data Cores Recovered . | . . . . . Used . | . . . . . Hacking Detections 3 | . 3 . . . Full Trace Events 1 | . 1 . . . Feedback Events 1 | . 1 . . . Corruption 1 | . 1 . . . Feedback Blocked . | . . . . . Robot Schematics Acquired . | . . . . . Robots Built . | . . . . . Authchips . | . . . . . Time . | . . . . . Total Robot Build Rating . | . . . . . Part Schematics Acquired . | . . . . . Parts Built . | . . . . . Authchips . | . . . . . Time . | . . . . . Total Part Build Rating . | . . . . . Parts Repaired . | . . . . . Time . | . . . . . Parts Recycled . | . . . . . Recycled Matter . | . . . . . Retrieved Matter . | . . . . . Retrieved Components . | . . . . . Parts Scanalyzed . | . . . . . Part Schematics Acquired . | . . . . . Parts Damaged . | . . . . . Bothacking | -11 -10 -10 -10 -9 ------------ Run | Yrd Mat Min Exi Min Used RIF Installer . | . . . . . Robots Hacked . | . . . . . Non-combat . | . . . . . Combat . | . . . . . Robot Hacks Applied . | . . . . . Relay Couplers Released . | . . . . . Fabnet Peak Effective % . | . . . . . Robots Rewired . | . . . . . Allies Hacked . | . . . . . Hacks Repelled . | . . . . . Allies | -11 -10 -10 -10 -9 -------- Run | Yrd Mat Min Exi Min Total Allies 1 | . . 1 . . Largest Group 1 | . . 1 1 . Highest-Rated Group 31 | . . 31 31 . Highest-Rated Ally 31 | . . 31 31 . Total Orders . | . . . . . Ally Attacks . | . . . . . Total Damage . | . . . . . Kills . | . . . . . Allies Corrupted . | . . . . . Allies Melted . | . . . . . Intel | -11 -10 -10 -10 -9 ------- Run | Yrd Mat Min Exi Min Active Infowar (turns) 2740 | 11 1439 184 635 471 Seismic 2740 | 11 1439 184 635 471 Robot Analysis Total . | . . . . . Derelict Logs Recovered . | . . . . . Drone Launches . | . . . . . Drone Recoveries . | . . . . . Exploration | -11 -10 -10 -10 -9 ------------- Run | Yrd Mat Min Exi Min Turns Passed 2807 | 75 1439 187 635 471 Spaces Moved 1520 | 40 700 112 436 232 Core 3 | 3 . . . . Treads 655 | 37 618 . . . Legs . | . . . . . Wheels 862 | . 82 112 436 232 Hover . | . . . . . Flight . | . . . . . Fastest Speed 50 | 50 130 130 145 145 Average Speed 151 | 151 160 135 145 145 Slowest Speed 240 | 160 240 145 145 145 Overloaded Moves . | . . . . . Propulsion Burnouts . | . . . . . Robots Hopped . | . . . . . Potential Cave-ins . | . . . . . Cave-ins Triggered . | . . . . . Exploration Rate (%) 49 | 3 80 26 77 60 Regions Visited 4 Branch Regions 3 Pre-discovered Areas . | . . . . . Known Exits Taken . | . . . . . Unknown Exits Taken 4 | 1 1 1 1 . Scrap Searched 2 | . . . . 2 Spaces Dug . | . . . . . Terrain Destroyed . | . . . . . Melee . | . . . . . Projectile . | . . . . . AOE . | . . . . . Terrain Rammed . | . . . . . Walls Destroyed . | . . . . . Machines Disabled . | . . . . . Actions | -11 -10 -10 -10 -9 --------- Run | Yrd Mat Min Exi Min Total 1825 | 49 862 149 443 322 Wait 150 | . 61 24 . 65 Move 1516 | 39 699 111 435 232 Hop . | . . . . . Pick Up 21 | 2 15 2 2 . Fast Attach 13 | 7 3 2 . 1 Attach 2 | . 1 . 1 . Detach . | . . . . . Swap 12 | . 6 3 1 2 Drop 11 | . 1 6 4 . Fire 98 | 1 75 . . 22 Melee . | . . . . . Ram . | . . . . . Kick . | . . . . . Crush 1 | . 1 . . . Escape Stasis . | . . . . . Rewire . | . . . . . Trap 1 | . . 1 . . Miscellaneous . | . . . . . Route ------- -11/Scrapyard -10/Materials (discovered 4 exits: [*Mat x2] / *Min x2) -10/Mines (discovered 2 exits: [*Mat] / *Exi) -10/Exiles (discovered 2 exits: [*Min x2]) -9/Mines History --------- Turn | Location | Event 36 | -11/Scrapyard | Discovered new exit (range 15) 76 | -11/Scrapyard | Entered Materials 281 | -10/Materials | Discovered new exit (range 15) 304 | -10/Materials | Build established: Mutant 356 | -10/Materials | Discovered new exit (range 16) 696 | -10/Materials | Discovered new exit (range 16) 1022 | -10/Materials | Discovered new exit (range 4) 1445 | -10/Materials | Core integrity fell below 50% 1515 | -10/Materials | Entered Mines 1518 | -10/Mines | Received a Mining Laser from a helpful Derelict 1594 | -10/Mines | Met a Derelict who couldn't figure out how to use a Trap Extractor 1662 | -10/Mines | Discovered new exit (range 16) 1695 | -10/Mines | Deemed a non-threat by the Exiles lab entrance 1696 | -10/Mines | Discovered new exit (range 5) 1702 | -10/Mines | Entered Exiles 1702 | -10/Exiles | Found Exiles lab abandoned 1702 | -10/Exiles | Accompanied by 1 ally 2140 | -10/Exiles | Discovered new exit (range 14) 2319 | -10/Exiles | Discovered new exit (range 14) 2337 | -10/Exiles | Entered Mines 2366 | -9/Mines | Core integrity fell below 20% 2634 | -9/Mines | Assembled infested the area 2808 | -9/Mines | Destroyed by as-03221 with Assembled Heavy Rifle Last Messages --------------- 02634_ ALERT: Infestation in the mines, dispatching Demolisher response squad. 02650_ Searching scrap... 02650_ Found EM Shotgun. 02650_ Found Med. Laser. 02650_ Found Terrain Scanner. 02650_ Found 30 Matter. 02651_ Acquired 30 matter. 02672_ as-38371 destroyed. 02672_ Laser Drill disabled. 02675_ Destroyed Asb. Hover Unit. 02675_ as-66983 destroyed. 02676_ as-83012 destroyed. 02753_ System corrupted: Heat flow error (+181). 02774_ Acquired 2 matter. 02775_ Acquired 3 matter. 02775_ K-01 Serf collects debris. 02781_ U-05 Engineer lays Concrete. 02783_ K-01 Serf collects debris. 02792_ Acquired 3 matter. Map ----- +----------------------------------------------------+ | ??# ????# #### ##????# #???# ## #???? | | ### ????# #??## #?????## ##???# ## #???? | | # ##### #???#### #??????####????# ## #???? | | #??????## ##???????????#### ## #???? | | #### #???????### ##???????????## # ## ##??? | | #??# #?????????# #????????# ### ##?? | | ???# #?????????# #??????? ##? | | #### ###???????# #??????? #? | | [[ #?????### #????????## ### #? | | # ### #??####$ #?????????????### #? | | ??# # # ? ## #????????????????## #? | | ???# # ## #### ## #????????????????## ### #? | | #???## ##??# ## #???????????????## ##?## #? | | ???## #### ## #???????????????# #????##? | | ???# ## ## ##???##?????????# ##?????? | | ???## ## ## ##?? ?????????## ##????? | | ???# ! ##? #??????????## ##???? | | #### % * #? #???????????# #???? | | # # % ## ###????##???## #???? | | " ### #????# #???## =##???? | | " ######?#### ##???# ##??## #????? | | """ ####?????????##a ##??# ##??# #????? | | ##?????????????# """ #???# ! ####=#????? | | # ##??????????????## """ #???## %% !/%#????? | | # #????????????????## """ #????## %###????? | | # #?????????????????##@ #?????# #??????? | | ##??????????????????# #?????# ##??????? | | ##???????????????????# ??## #???????? | | ##???????????????????? #?# #???????? | | #????????????????????? k #???????? | | ##?????????????????????# #???????? | | #??????????????????????##### ### #######???????? | | #??????????????????????????? #???##?????????????? | | ##????????????????????????????#??????????????????? | | #????????????????????????????????????????????????? | | ?????????????????????????????????????????????????? | | ?????????????????????????????????????????????????? | | ?????????????????????????????????????????????????? | | ?????????????????????????????????????????????????? | | ?????????????????????????????????????????????????? | | ?????????????????????????????????????????????????? | | ?????????????????????????????????????????????????? | | ?????????????????????????????????????????????????? | | ?????????????????????????????????????????????????? | | ?????????????????????????????????????????????????? | | ?????????????????????????????????????????????????? | | ?????????????????????????????????????????????????? | | ?????????????????????????????????????????????????? | | ?????????????????????????????????????????????????? | | ?????????????????????????????????????????????????? | +----------------------------------------------------+ Best States ------------- Heat Dissipation 25 Energy Generation 14 Energy Capacity 240 Matter Stores 440 Matter Capacity 450 Sight Range 16 Terrain Scan Density 10 Evasion (%) 40 Recoil Reduction 2 Item Schematics ----------------- None Robot Schematics ------------------ None Fabricated ------------ Nothing Repaired ---------- Nothing Alien Tech Used ----------------- None Achievements -------------- None Challenges ------------ None Game ------ Seed LinearSpectralShovel Manual? 0 Play Time 00:15:00 Cumulative 183.4 hours Start 2025.08.16 @ 12:41:51 End 2025.08.16 @ 12:56:34 Sessions 1 Manual Loads 0 Difficulty Rogue Special Mode None Game No. 152 Rogue 152 Adventurer 0 Explorer 0 Win Type - Total 5 Types 3/0/1/1/0/0/0/0/0/0 Lore% 77 Gallery% 71 Achievement% 64 Wizard Run 0 Options --------- Layout 1 ASCII 0 Keyboard 0 Movement Mouse Keybinds 0 Fullscreen 1 Font 24/Smallcaps Map View 50x35 Zoom Use 0% Tactical HUD 1 Map Filters NONE Filters NONE Steam 1 RUN: 53dcc3a4-dc39-4043-96a2-6f390b766fb1